fUST/lending_fUST_20250627
["ID","MTS","AMOUNT","RATE_DAILY","PERIOD"]
[368032418,1750999850680,-153.0,0.00021315,2]
[368032420,1750999850689,-153.0,0.00021315,2]
[368032422,1750999850698,-153.0,0.00021315,2]
[368032424,1750999850708,-581.3325285,0.00021337,2]
[368032426,1750999850717,-212.2939305,0.00021337,2]
[368032428,1750999850728,-7751.56468322,0.00021348,5]
[368032430,1750999850737,-511.06,0.00021369,2]
[368032432,1750999850747,-460.0,0.00021369,2]
[368032434,1750999850756,-460.0,0.00021369,2]
[368032436,1750999850765,-460.0,0.00021369,2]
[368032438,1750999850774,-851.95,0.00021369,2]
[368032440,1750999850784,-460.0,0.00021369,2]
[368032442,1750999850793,-781.26,0.00021369,2]
[368032444,1750999850803,-460.0,0.00021369,2]
[368032446,1750999850813,-182.22,0.00021369,2]
[368032448,1750999850823,-460.0,0.00021369,2]
[368032450,1750999850832,-151.0,0.00021369,2]
[368032452,1750999850841,-511.66,0.00021369,2]
[368032454,1750999850850,-460.0,0.00021369,2]
[368032456,1750999850859,-151.0,0.00021369,2]
[368032458,1750999850869,-151.0,0.00021369,2]
[368032460,1750999850878,-151.0,0.00021369,2]
[368032462,1750999850888,-151.0,0.00021369,2]
[368032464,1750999850897,-755.82,0.00021369,2]
[368032466,1750999850906,-579.61,0.00021369,2]
[368032468,1750999850916,-582.57,0.00021369,2]
[368032470,1750999850926,-460.0,0.00021369,2]
[368032472,1750999850935,-1368.78,0.00021369,2]
[368032474,1750999850944,-558.64,0.00021369,2]
[368032476,1750999850954,-460.0,0.00021369,2]
[368032478,1750999850963,-460.0,0.00021369,2]
[368032480,1750999850972,-525.28,0.00021369,2]
[368032482,1750999850982,-460.0,0.00021369,2]
[368032484,1750999850991,-1698.41,0.00021369,2]
[368032486,1750999851001,-698.59,0.00021369,2]
[368032488,1750999851011,-460.0,0.00021369,2]
[368032490,1750999851020,-516.57,0.00021369,2]
[368032492,1750999851033,-460.0,0.00021369,2]
[368032495,1750999851045,-1646.94,0.00021369,2]
[368032496,1750999851054,-538.65,0.00021369,2]
[368032498,1750999851063,-464.71,0.00021369,2]
[368032500,1750999851073,-2283.74,0.00021369,2]
[368032502,1750999851085,-460.0,0.00021369,2]
[368032504,1750999851094,-460.0,0.00021369,2]
[368032506,1750999851104,-1208.66,0.00021369,2]
[368032508,1750999851113,-460.0,0.00021369,2]
[368032510,1750999851123,-837.04,0.00021369,2]
[368032512,1750999851131,-1824.86,0.00021369,2]
[368032514,1750999851140,-2140.66,0.00021369,2]
[368032516,1750999851149,-730.84,0.00021369,2]
[368032518,1750999851160,-789.54,0.00021369,2]
[368032520,1750999851169,-608.35,0.00021369,2]
[368032522,1750999851179,-460.0,0.00021369,2]
[368032524,1750999851188,-460.0,0.00021369,2]
[368032526,1750999851197,-582.08,0.00021369,2]
[368032528,1750999851207,-460.0,0.00021369,2]
[368032530,1750999851216,-460.0,0.00021369,2]
[368032532,1750999851226,-460.0,0.00021369,2]
[368032534,1750999851235,-460.0,0.00021369,2]
[368032536,1750999851245,-460.0,0.00021369,2]
[368032539,1750999851254,-460.0,0.00021369,2]
[368032541,1750999851264,-1486.78,0.00021369,2]
[368032542,1750999851273,-503.6,0.00021369,2]
[368032544,1750999851283,-2370.59,0.00021369,2]
[368032546,1750999851292,-4034.46,0.00021369,2]
[368032548,1750999851301,-464.56,0.00021369,2]
[368032551,1750999851312,-460.0,0.00021369,2]
[368032553,1750999851322,-1565.51,0.00021369,2]
[368032555,1750999851332,-1932.3,0.00021369,2]
[368032557,1750999851341,-460.0,0.00021369,2]
[368032559,1750999851351,-769.44,0.00021369,2]
[368032561,1750999851360,-607.12,0.00021369,2]
[368032562,1750999851370,-692.62,0.00021369,2]
[368032564,1750999851379,-460.0,0.00021369,2]
[368032566,1750999851389,-3255.31,0.00021369,2]
[368032569,1750999851398,-1002.12,0.00021369,2]
[368032571,1750999851408,-1860.43,0.00021369,2]
[368032573,1750999851417,-460.0,0.00021369,2]
[368032575,1750999851427,-460.0,0.00021369,2]
[368032577,1750999851440,-1085.41,0.00021369,2]
[368032579,1750999851450,-919.91,0.00021369,2]
[368032581,1750999851459,-966.0,0.00021369,2]
[368032583,1750999851468,-654.0,0.00021369,2]
[368032585,1750999851478,-2161.0,0.00021369,2]
[368032587,1750999851488,-151.0,0.000214,3]
[368032589,1750999851497,-174.38704177,0.00021425,2]
[368032591,1750999851506,-165.163626,0.00021442,5]
[368032593,1750999851517,-1100.001432,0.00021478,4]
[368032595,1750999851526,-1229.0,0.00021496,2]
[368032597,1750999851536,-177.4788171,0.00021534,2]
[368032599,1750999851545,-159.2394861,0.00021534,2]
[368032601,1750999851554,-177.4788171,0.00021534,2]
[368032603,1750999851564,-159.2394861,0.00021534,2]
[368032605,1750999851573,-575.118961,0.00021534,2]
[368032607,1750999851582,-176.9019081,0.00021534,2]
[368032609,1750999851591,-160.0,0.00021548,3]
[368032611,1750999851601,-274.140044,0.00021555,2]
[368032613,1750999851610,-151.0,0.00021555,2]
[368032615,1750999851620,-151.0,0.00021555,2]
[368032617,1750999851630,-7751.56468322,0.00021555,5]
[368032619,1750999851639,-1229.0,0.00021564,2]
[368032621,1750999851648,-151.0,0.000216,4]
[368032623,1750999851658,-151.0,0.000216,4]
[368032625,1750999851667,-177.4788171,0.00021616,2]
[368032627,1750999851677,-306.0,0.00021616,2]
[368032629,1750999851686,-575.118961,0.00021616,2]
[368032631,1750999851695,-159.2394861,0.00021616,2]
[368032633,1750999851705,-575.118961,0.00021616,2]
[368032635,1750999851714,-587.58906329,0.00021643,2]
[368032637,1750999851723,-511.06,0.00021643,2]
[368032639,1750999851733,-213.53654037,0.00021643,2]
[368032641,1750999851743,-460.0,0.00021643,2]
[368032643,1750999851753,-420.04191384,0.00021643,2]
[368032645,1750999851763,-851.95,0.00021643,2]
[368032647,1750999851773,-460.0,0.00021643,2]
[368032649,1750999851782,-781.26,0.00021643,2]
[368032651,1750999851791,-151.0,0.00021643,2]
[368032653,1750999851801,-151.0,0.00021643,2]
[368032655,1750999851810,-151.0,0.00021643,2]
[368032657,1750999851819,-151.0,0.00021643,2]
[368032659,1750999851830,-151.0,0.00021643,2]
[368032661,1750999851839,-151.0,0.00021643,2]
[368032663,1750999851849,-151.0,0.00021643,2]
[368032665,1750999851858,-151.0,0.00021643,2]
[368032667,1750999851868,-151.0,0.00021643,2]
[368032669,1750999851877,-151.0,0.00021643,2]
[368032671,1750999851886,-151.0,0.00021643,2]
[368032673,1750999851896,-154.754718,0.00021643,2]
[368032675,1750999851905,-154.754718,0.00021643,2]
[368032677,1750999851914,-235.66300011,0.00021643,2]
[368032679,1750999851923,-511.66,0.00021643,2]
[368032681,1750999851933,-452.28800554,0.00021643,2]
[368032683,1750999851942,-168.423734,0.00021643,2]
[368032685,1750999851952,-168.423734,0.00021643,2]
[368032687,1750999851961,-755.82,0.00021643,2]
[368032689,1750999851971,-579.61,0.00021643,2]
[368032691,1750999851981,-582.57,0.00021643,2]
[368032693,1750999851990,-460.0,0.00021643,2]
[368032695,1750999851999,-1368.78,0.00021643,2]
[368032697,1750999852009,-558.64,0.00021643,2]
[368032699,1750999852019,-460.0,0.00021643,2]
[368032701,1750999852028,-460.0,0.00021643,2]
[368032703,1750999852037,-525.28,0.00021643,2]
[368032705,1750999852047,-460.0,0.00021643,2]
[368032707,1750999852057,-1698.41,0.00021643,2]
[368032709,1750999852067,-698.59,0.00021643,2]
[368032711,1750999852076,-460.0,0.00021643,2]
[368032713,1750999852086,-516.57,0.00021643,2]
[368032715,1750999852095,-460.0,0.00021643,2]
[368032717,1750999852106,-1646.94,0.00021643,2]
[368032719,1750999852115,-538.65,0.00021643,2]
[368032721,1750999852124,-464.71,0.00021643,2]
[368032723,1750999852134,-2283.74,0.00021643,2]
[368032725,1750999852144,-460.0,0.00021643,2]
[368032727,1750999852154,-460.0,0.00021643,2]
[368032729,1750999852163,-1208.66,0.00021643,2]
[368032731,1750999852173,-460.0,0.00021643,2]
[368032733,1750999852183,-1824.86,0.00021643,2]
[368032735,1750999852192,-2140.66,0.00021643,2]
[368032737,1750999852202,-837.04,0.00021643,2]
[368032739,1750999852211,-730.84,0.00021643,2]
[368032741,1750999852221,-789.54,0.00021643,2]
[368032743,1750999852231,-608.35,0.00021643,2]
[368032744,1750999852240,-460.0,0.00021643,2]
[368032746,1750999852249,-460.0,0.00021643,2]
[368032748,1750999852260,-582.08,0.00021643,2]
[368032751,1750999852270,-460.0,0.00021643,2]
[368032752,1750999852280,-566.2393405,0.00021643,2]
[368032754,1750999852289,-460.0,0.00021643,2]
[368032756,1750999852299,-460.0,0.00021643,2]
[368032758,1750999852308,-460.0,0.00021643,2]
[368032760,1750999852318,-460.0,0.00021643,2]
[368032762,1750999852328,-1486.78,0.00021643,2]
[368032764,1750999852337,-503.6,0.00021643,2]
[368032766,1750999852347,-151.0,0.00021643,2]
[368032768,1750999852356,-2370.59,0.00021643,2]
[368032770,1750999852366,-4034.46,0.00021643,2]
[368032772,1750999852375,-464.56,0.00021643,2]
[368032774,1750999852385,-460.0,0.00021643,2]
[368032776,1750999852394,-1565.51,0.00021643,2]
[368032778,1750999852404,-1932.3,0.00021643,2]
[368032780,1750999852414,-460.0,0.00021643,2]
[368032782,1750999852424,-769.44,0.00021643,2]
[368032784,1750999852435,-607.12,0.00021643,2]
[368032786,1750999852446,-151.0,0.00021643,2]
[368032788,1750999852456,-692.62,0.00021643,2]
[368032790,1750999852465,-279.647075,0.00021643,2]
[368032792,1750999852475,-460.0,0.00021643,2]
[368032794,1750999852484,-3255.31,0.00021643,2]
[368032796,1750999852494,-1002.12,0.00021643,2]
[368032798,1750999852503,-1860.43,0.00021643,2]
[368032800,1750999852513,-460.0,0.00021643,2]
[368032802,1750999852523,-460.0,0.00021643,2]
[368032804,1750999852532,-1085.41,0.00021643,2]
[368032806,1750999852541,-919.91,0.00021643,2]
[368032808,1750999852551,-252.0,0.00021684,2]
[368032810,1750999852560,-274.990608,0.00021684,2]
[368032812,1750999852570,-151.0,0.000217,3]
[368032814,1750999852579,-174.38704177,0.00021726,2]
[368032816,1750999852588,-290.64506963,0.00021726,2]
[368032818,1750999852597,-7751.56468322,0.00021762,5]
[368032820,1750999852607,-151.0,0.000218,3]
[368032822,1750999852616,-5022.73,0.000218,2]
[368032824,1750999852625,-753.0,0.00021839,2]
[368032826,1750999852635,-160.0,0.00021865,4]
[368032828,1750999852644,-614.99092968,0.00021898,2]
[368032829,1750999852653,-151.0,0.00021917,2]
[368032831,1750999852663,-151.0,0.00021917,2]
[368032833,1750999852673,-203.79692233,0.00021917,2]
[368032835,1750999852682,-460.0,0.00021917,2]
[368032837,1750999852691,-547.03226586,0.00021917,2]
[368032839,1750999852701,-511.06,0.00021917,2]
[368032841,1750999852710,-460.0,0.00021917,2]
[368032843,1750999852719,-851.95,0.00021917,2]
[368032845,1750999852729,-460.0,0.00021917,2]
[368032847,1750999852738,-781.26,0.00021917,2]
[368032849,1750999852747,-511.66,0.00021917,2]
[368032851,1750999852757,-755.82,0.00021917,2]
[368032853,1750999852767,-579.61,0.00021917,2]
[368032855,1750999852776,-151.0,0.00021917,2]
[368032857,1750999852787,-582.57,0.00021917,2]
[368032859,1750999852796,-460.0,0.00021917,2]
[368032861,1750999852806,-174.797159,0.00021917,2]
[368032862,1750999852815,-1368.78,0.00021917,2]
[368032864,1750999852824,-252.510402,0.00021917,2]
[368032866,1750999852833,-252.510402,0.00021917,2]
[368032868,1750999852842,-151.0,0.00021917,2]
[368032883,1750999852974,-558.64,0.00021917,2]
[368032884,1750999852984,-460.0,0.00021917,2]
[368032887,1750999852994,-460.0,0.00021917,2]
[368032888,1750999853003,-525.28,0.00021917,2]
[368032890,1750999853013,-460.0,0.00021917,2]
[368032893,1750999853023,-1698.41,0.00021917,2]
[368032894,1750999853033,-698.59,0.00021917,2]
[368032896,1750999853043,-460.0,0.00021917,2]
[368032898,1750999853053,-516.57,0.00021917,2]
[368032901,1750999853064,-460.0,0.00021917,2]
[368032902,1750999853074,-1646.94,0.00021917,2]
[368032904,1750999853083,-538.65,0.00021917,2]
[368032906,1750999853092,-464.71,0.00021917,2]
[368032908,1750999853103,-226.637287,0.00021917,2]
[368032910,1750999853112,-2283.74,0.00021917,2]
[368032912,1750999853122,-226.637287,0.00021917,2]
[368032914,1750999853132,-151.0,0.00021917,2]
[368032916,1750999853141,-151.0,0.00021917,2]
[368032918,1750999853151,-460.0,0.00021917,2]
[368032920,1750999853166,-151.0,0.00021917,2]
[368032922,1750999853175,-460.0,0.00021917,2]
[368032924,1750999853185,-1208.66,0.00021917,2]
[368032926,1750999853194,-460.0,0.00021917,2]
[368032928,1750999853204,-1824.86,0.00021917,2]
[368032930,1750999853213,-151.0,0.00021917,2]
[368032932,1750999853223,-2140.66,0.00021917,2]
[368032934,1750999853232,-837.04,0.00021917,2]
[368032936,1750999853241,-730.84,0.00021917,2]
[368032938,1750999853251,-151.0,0.00021917,2]
[368032940,1750999853260,-789.54,0.00021917,2]
[368032942,1750999853270,-752.335835,0.00021917,2]
[368032943,1750999853279,-752.335835,0.00021917,2]
[368032945,1750999853288,-608.35,0.00021917,2]
[368032947,1750999853298,-175.364312,0.00021917,2]
[368032949,1750999853307,-460.0,0.00021917,2]
[368032952,1750999853317,-175.364312,0.00021917,2]
[368032954,1750999853327,-460.0,0.00021917,2]
[368032955,1750999853336,-582.08,0.00021917,2]
[368032958,1750999853346,-426.03572099,0.00021917,2]
[368032959,1750999853356,-460.0,0.00021917,2]
[368032961,1750999853365,-253.878886,0.00021917,2]
[368032963,1750999853375,-460.0,0.00021917,2]
[368032965,1750999853385,-460.0,0.00021917,2]
[368032967,1750999853394,-460.0,0.00021917,2]
[368032969,1750999853403,-1486.78,0.00021917,2]
[368032971,1750999853414,-503.6,0.00021917,2]
[368032973,1750999853423,-2370.59,0.00021917,2]
[368032975,1750999853434,-4034.46,0.00021917,2]
[368032977,1750999853446,-464.56,0.00021917,2]
[368032979,1750999853455,-311.3943043,0.00021917,2]
[368032981,1750999853464,-1565.51,0.00021917,2]
[368032983,1750999853474,-1932.3,0.00021917,2]
[368032985,1750999853484,-460.0,0.00021917,2]
[368032987,1750999853493,-769.44,0.00021917,2]
[368032989,1750999853503,-500.0,0.00021917,2]
[368032991,1750999853514,-607.12,0.00021917,2]
[368032993,1750999853523,-151.0,0.00021917,2]
[368032995,1750999853533,-1303.936942,0.00021917,2]
[368032997,1750999853542,-151.0,0.00021917,2]
[368032999,1750999853552,-1303.936942,0.00021917,2]
[368033001,1750999853563,-692.62,0.00021917,2]
[368033003,1750999853572,-460.0,0.00021917,2]
[368033005,1750999853582,-3255.31,0.00021917,2]
[368033007,1750999853591,-1002.12,0.00021917,2]
[368033009,1750999853601,-1860.43,0.00021917,2]
[368033011,1750999853611,-460.0,0.00021917,2]
[368033013,1750999853620,-460.0,0.00021917,2]
[368033015,1750999853630,-1085.41,0.00021917,2]
[368033017,1750999853639,-919.91,0.00021917,2]
[368033019,1750999853649,-166.0,0.00021918,2]
[368033021,1750999853658,-151.0,0.00021918,2]
[368033023,1750999853668,-151.0,0.00021918,2]
[368033025,1750999853678,-150.0,0.00021918,2]
[368033027,1750999853687,-7751.56468322,0.00021969,6]
[368033029,1750999853696,-151.0,0.00021969,7]
[368033030,1750999853705,-151.0,0.00021969,7]
[368033032,1750999853715,-153.012771,0.00021969,7]
[368033034,1750999853724,-151.0,0.00021969,7]
[368033036,1750999853733,-151.0,0.00021969,7]
[368033038,1750999853742,-610.78167965,0.00021973,2]
[368033040,1750999853752,-500.0,0.00021973,2]
[368033042,1750999853762,-500.56052383,0.00021973,2]
[368033044,1750999853771,-500.0,0.00021973,2]
[368033046,1750999853781,-500.47190355,0.00021973,2]
[368033048,1750999853791,-198.78382991,0.00021973,2]
[368033050,1750999853800,-500.0,0.00021973,2]
[368033052,1750999853810,-500.0,0.00021973,2]
[368033054,1750999853819,-500.0,0.00021973,2]
[368033056,1750999853828,-500.0,0.00021973,2]
[368033058,1750999853838,-500.0,0.00021973,2]
[368033060,1750999853847,-500.0,0.00021973,2]
[368033062,1750999853856,-200.73813669,0.00021973,2]
[368033064,1750999853866,-500.0,0.00021973,2]
[368033066,1750999853876,-180.55111141,0.00021973,2]
[368033067,1750999853885,-500.0,0.00021973,2]
[368033069,1750999853895,-500.0,0.00021973,2]
[368033071,1750999853904,-500.0,0.00021973,2]
[368033073,1750999853913,-500.0,0.00021973,2]
[368033075,1750999853923,-500.0,0.00021973,2]
[368033077,1750999853933,-500.0,0.00021973,2]
[368033079,1750999853942,-500.0,0.00021973,2]
[368033081,1750999853951,-500.0,0.00021973,2]
[368033083,1750999853961,-500.0,0.00021973,2]
[368033085,1750999853970,-600.0,0.00021973,2]
[368033087,1750999853980,-500.0,0.00021973,2]
[368033089,1750999853989,-500.0,0.00021973,2]
[368033091,1750999853999,-544.82622425,0.00021973,2]
[368033093,1750999854008,-500.0,0.00021973,2]
[368033095,1750999854017,-500.0,0.00021973,2]
[368033096,1750999854026,-500.0,0.00021973,2]
[368033098,1750999854036,-500.0,0.00021973,2]
[368033100,1750999854046,-500.0,0.00021973,2]
[368033102,1750999854057,-500.0,0.00021973,2]
[368033104,1750999854067,-500.0,0.00021973,2]
[368033106,1750999854077,-500.0,0.00021973,2]
[368033108,1750999854086,-500.0,0.00021973,2]
[368033110,1750999854095,-500.0,0.00021973,2]
[368033112,1750999854105,-500.0,0.00021973,2]
[368033114,1750999854114,-500.0,0.00021973,2]
[368033116,1750999854123,-500.0,0.00021973,2]
[368033118,1750999854133,-500.0,0.00021973,2]
[368033120,1750999854143,-586.43269723,0.00021973,2]
[368033122,1750999854152,-500.0,0.00021973,2]
[368033124,1750999854162,-500.0,0.00021973,2]
[368033126,1750999854171,-500.0,0.00021973,2]
[368033128,1750999854180,-500.0,0.00021973,2]
[368033130,1750999854190,-500.0,0.00021973,2]
[368033132,1750999854199,-500.0,0.00021973,2]
[368033134,1750999854209,-500.0,0.00021973,2]
[368033136,1750999854218,-500.0,0.00021973,2]
[368033138,1750999854227,-500.0,0.00021973,2]
[368033140,1750999854236,-500.0,0.00021973,2]
[368033141,1750999854246,-500.0,0.00021973,2]
[368033143,1750999854255,-500.0,0.00021973,2]
[368033145,1750999854265,-500.0,0.00021973,2]
[368033147,1750999854275,-151.0,0.00021973,7]
[368033149,1750999854284,-151.0,0.00021973,7]
[368033151,1750999854293,-200.0,0.0002198,4]
[368033153,1750999854302,-53963.7303666,0.00021998,2]
[368033155,1750999854312,-151.0,0.00021998,7]
[368033157,1750999854321,-151.0,0.00021998,7]
[368033159,1750999854330,-151.0,0.00021998,7]
[368033161,1750999854339,-151.0,0.00021998,7]
[368033163,1750999854348,-151.0,0.00021998,7]
[368033165,1750999854357,-154.754718,0.00021998,7]
[368033167,1750999854366,-154.754718,0.00021998,7]
[368033168,1750999854375,-168.423734,0.00021998,7]
[368033169,1750999854384,-168.423734,0.00021998,7]
[368033170,1750999854394,-151.0,0.00021998,7]
[368033171,1750999854403,-200.0,0.00021999,2]
[368033172,1750999854412,-200.0,0.00021999,2]
[368033173,1750999854421,-160.20507518,0.00021999,2]
[368033174,1750999854433,-16012.86723766,0.00022,2]
[368033175,1750999854442,-160.0,0.00022,3]
[368033176,1750999854451,-95238.27668263,0.00022,2]
[368033227,1750999855102,-460.0,0.00019178,2]
[368033229,1750999855112,-460.0,0.00019178,2]
[368033231,1750999855121,-460.0,0.00019178,2]
[368033233,1750999855131,-460.0,0.00019178,2]
[368033235,1750999855141,-460.0,0.00019452,2]
[368033237,1750999855150,-460.0,0.00019452,2]
[368033239,1750999855159,-310.47,0.00019452,2]
[368033244,1750999855199,-460.0,0.00019726,2]
[368033246,1750999855208,-460.0,0.00019726,2]
[368033248,1750999855218,-243.76,0.0002,2]
[368033250,1750999855227,-460.0,0.0002,2]
[368033252,1750999855236,-151.0,0.00020821,2]
[368033254,1750999855245,-500.0,0.00020933,2]
[368033256,1750999855254,-500.0,0.00020933,2]
[368033258,1750999855263,-168.99235446,0.00020933,2]
[368033259,1750999855272,-500.0,0.00020933,2]
[368033261,1750999855282,-2262.32,0.00021369,2]
[368033263,1750999855291,-151.0,0.00021555,2]
[368033265,1750999855300,-2262.32,0.00021643,2]
[368033267,1750999855310,-10475.74384487,0.000219,2]
[368033269,1750999855319,-2262.32,0.00021917,2]
[368033271,1750999855328,-151.0,0.00021998,7]
[368033273,1750999855337,-162613.20423377,0.00022,2]
[368033275,1750999855347,-2000.0,0.00022,2]
[368033277,1750999855356,-2000.0,0.00022,2]
[368033279,1750999855365,-2000.0,0.00022,2]
[368033281,1750999855374,-37848.85603756,0.00022,2]
[368033283,1750999855384,-108621.6111086,0.00022,2]
[368033285,1750999855395,-330.85826451,0.00022,2]
[368034016,1751000522821,500.0,0.00017273,2]
[368034017,1751000551207,-460.0,0.00018183,2]
[368034019,1751000700289,160.63345,0.00013699,2]
[368034020,1751000749106,-40.0,0.00018183,2]
[368034021,1751000749127,-500.0,0.00019139,2]
[368034022,1751000749148,-160.0,0.00019158,2]
[368034023,1751000749173,-300.0,0.00019176,2]
[368034024,1751000749194,-587.0,0.00019177,2]
[368034025,1751000749216,-1000.0,0.00019177,2]
[368034026,1751000749239,-174.08051206,0.00019177,2]
[368034032,1751001032691,-1653.8636767,0.000189,2]
[368034033,1751001032700,-825.91948794,0.00019177,2]
[368034034,1751001032710,-1000.0,0.00019177,2]
[368034035,1751001032719,-300.0,0.00019177,2]
[368034036,1751001032728,-550.59,0.00019178,2]
[368034037,1751001032737,-460.0,0.00019178,2]
[368034038,1751001032746,-460.0,0.00019178,2]
[368034039,1751001032756,-460.0,0.00019178,2]
[368034040,1751001032766,-460.0,0.00019178,2]
[368034041,1751001032775,-460.0,0.00019178,2]
[368034042,1751001032784,-460.0,0.00019178,2]
[368034044,1751001032793,-460.0,0.00019178,2]
[368034045,1751001032802,-460.0,0.00019178,2]
[368034046,1751001032811,-366.61941739,0.00019178,2]
[368034074,1751001038566,-93.38058261,0.00019178,2]
[368034075,1751001038576,-460.0,0.00019178,2]
[368034076,1751001038586,-460.0,0.00019178,2]
[368034077,1751001038595,-460.0,0.00019178,2]
[368034078,1751001038605,-460.0,0.00019178,2]
[368034079,1751001038614,-460.0,0.00019178,2]
[368034080,1751001038623,-602.41,0.00019178,2]
[368034082,1751001038633,-597.69170077,0.00019178,2]
[368034084,1751001038642,-312.1468531,0.00019178,2]
[368034086,1751001038651,-460.0,0.00019178,2]
[368034088,1751001038660,-125.61852319,0.00019178,2]
[368034090,1751001038672,-389.81102861,0.00019178,2]
[368034092,1751001038681,-141.68897139,0.00019178,2]
[368034094,1751001038732,-318.31102861,0.00019178,2]
[368034095,1751001038741,-460.0,0.00019178,2]
[368034096,1751001038750,-460.0,0.00019178,2]
[368034097,1751001038760,-600.98,0.00019178,2]
[368034098,1751001038770,-460.0,0.00019178,2]
[368034099,1751001038780,-155.79944001,0.00019178,2]
[368034100,1751001038789,-460.0,0.00019178,2]
[368034101,1751001038799,-460.0,0.00019178,2]
[368034102,1751001038809,-460.0,0.00019178,2]
[368034103,1751001038818,-460.0,0.00019178,2]
[368034104,1751001038827,-460.0,0.00019178,2]
[368034105,1751001038838,-475.94843183,0.00019178,2]
[368034106,1751001038848,-460.0,0.00019178,2]
[368034107,1751001038858,-460.0,0.00019178,2]
[368034108,1751001038867,-483.06685245,0.00019178,2]
[368034110,1751001038877,-460.0,0.00019178,2]
[368034111,1751001038886,-460.0,0.00019178,2]
[368034112,1751001038895,-460.0,0.00019178,2]
[368034113,1751001038904,-460.0,0.00019178,2]
[368034114,1751001038914,-460.0,0.00019178,2]
[368034115,1751001038923,-478.37098556,0.00019178,2]
[368034116,1751001038932,-460.0,0.00019178,2]
[368034117,1751001038941,-460.0,0.00019178,2]
[368034118,1751001038951,-460.0,0.00019178,2]
[368034119,1751001038961,-460.0,0.00019178,2]
[368034120,1751001038970,-582.4,0.00019178,2]
[368034121,1751001038980,-460.0,0.00019178,2]
[368034122,1751001038989,-460.0,0.00019178,2]
[368034123,1751001038998,-460.0,0.00019178,2]
[368034124,1751001039007,-460.0,0.00019178,2]
[368034125,1751001039017,-571.62,0.00019178,2]
[368034126,1751001039028,-460.0,0.00019178,2]
[368034127,1751001039038,-384.7206075,0.00019178,2]
[368034128,1751001039047,-446.29134718,0.00019178,2]
[368034129,1751001039056,-998.79,0.00019178,2]
[368034130,1751001039065,-460.0,0.00019178,2]
[368034131,1751001039075,-463.14434827,0.00019178,2]
[368034132,1751001039084,-460.0,0.00019178,2]
[368034133,1751001039093,-460.0,0.00019178,2]
[368034134,1751001039102,-460.0,0.00019178,2]
[368034135,1751001039111,-467.55003261,0.00019178,2]
[368034136,1751001039120,-460.0,0.00019178,2]
[368034137,1751001039129,-460.0,0.00019178,2]
[368034138,1751001039139,-460.0,0.00019178,2]
[368034139,1751001039148,-1011.8219454,0.00019178,2]
[368034140,1751001039158,-460.0,0.00019178,2]
[368034141,1751001039168,-460.0,0.00019178,2]
[368034142,1751001039177,-460.0,0.00019178,2]
[368034143,1751001039186,-460.0,0.00019178,2]
[368034144,1751001039196,-460.0,0.00019178,2]
[368034145,1751001039205,-460.0,0.00019178,2]
[368034146,1751001039214,-460.0,0.00019178,2]